fUSD/lending_fUSD_20250125
["ID","MTS","AMOUNT","RATE_DAILY","PERIOD"]
[350368704,1737815457495,-500.0,0.00017534,2]
[350368705,1737815457504,-500.0,0.00017534,2]
[350368706,1737815457513,-607.25,0.00017534,2]
[350368707,1737815457522,-500.0,0.00017534,2]
[350368708,1737815457532,-500.0,0.00017534,2]
[350368709,1737815457541,-1238.12,0.00017534,2]
[350368710,1737815457550,-1671.13,0.00017534,2]
[350368711,1737815457559,-500.0,0.00017534,2]
[350368712,1737815457569,-747.01,0.00017534,2]
[350368713,1737815457578,-2482.07,0.00017534,2]
[350368714,1737815457587,-1414.32,0.00017534,2]
[350368715,1737815457596,-537.11,0.00017534,2]
[350368716,1737815457605,-500.0,0.00017534,2]
[350368717,1737815457614,-500.0,0.00017534,2]
[350368718,1737815457623,-500.0,0.00017534,2]
[350368719,1737815457632,-500.0,0.00017534,2]
[350368720,1737815457641,-667.36,0.00017534,2]
[350368721,1737815457650,-1211.55,0.00017534,2]
[350368722,1737815457660,-500.0,0.00017534,2]
[350368723,1737815457669,-500.0,0.00017534,2]
[350368724,1737815457678,-510.36,0.00017534,2]
[350368725,1737815457687,-500.0,0.00017534,2]
[350368726,1737815457699,-525.78,0.00017534,2]
[350368727,1737815457707,-500.0,0.00017534,2]
[350368728,1737815457716,-573.87,0.00017534,2]
[350368729,1737815457725,-1073.09,0.00017534,2]
[350368730,1737815457735,-1787.93,0.00017534,2]
[350368731,1737815457745,-500.0,0.00017534,2]
[350368732,1737815457756,-619.29,0.00017534,2]
[350368733,1737815457765,-500.0,0.00017534,2]
[350368734,1737815457775,-500.0,0.00017534,2]
[350368735,1737815457785,-634.75,0.00017534,2]
[350368736,1737815457794,-500.0,0.00017534,2]
[350368737,1737815457804,-500.0,0.00017534,2]
[350368738,1737815457814,-500.0,0.00017534,2]
[350368739,1737815457823,-622.31,0.00017534,2]
[350368740,1737815457832,-500.0,0.00017534,2]
[350368741,1737815457841,-1731.58,0.00017534,2]
[350368742,1737815457850,-500.0,0.00017534,2]
[350368743,1737815457860,-1257.87,0.00017534,2]
[350368744,1737815457869,-574.68,0.00017534,2]
[350368745,1737815457878,-500.0,0.00017534,2]
[350368746,1737815457887,-898.6,0.00017534,2]
[350368747,1737815457897,-543.74,0.00017534,2]
[350368748,1737815457906,-500.0,0.00017534,2]
[350368749,1737815457916,-879.75,0.00017534,2]
[350368750,1737815457925,-500.0,0.00017534,2]
[350368751,1737815457935,-500.0,0.00017534,2]
[350368752,1737815457944,-500.0,0.00017534,2]
[350368753,1737815457953,-843.9,0.00017534,2]
[350368754,1737815457963,-500.0,0.00017534,2]
[350368755,1737815457972,-1000.0,0.00017534,2]
[350368756,1737815457981,-500.0,0.00017534,2]
[350368757,1737815457990,-2189.12,0.00017534,2]
[350368758,1737815458000,-705.19,0.00017534,2]
[350368759,1737815458010,-542.2,0.00017534,2]
[350368760,1737815458019,-500.0,0.00017534,2]
[350368761,1737815458028,-500.0,0.00017534,2]
[350368762,1737815458037,-751.55,0.00017534,2]
[350368763,1737815458046,-500.0,0.00017534,2]
[350368764,1737815458055,-2135.79,0.00017534,2]
[350368765,1737815458064,-614.05082751,0.00017555,2]
[350368766,1737815458074,-1000.0,0.00017559,2]
[350368767,1737815458084,-157.48,0.00017599,2]
[350368768,1737815458093,-500.0,0.0001767,2]
[350368769,1737815458102,-500.0,0.0001767,2]
[350368770,1737815458112,-256.57561732,0.0001767,2]
[350368771,1737815458122,-500.0,0.00017671,2]
[350368772,1737815458131,-500.0,0.00017671,2]
[350368773,1737815458140,-500.0,0.00017671,2]
[350368774,1737815458150,-500.0,0.00017671,2]
[350368775,1737815458159,-763.46,0.00017671,2]
[350368776,1737815458168,-500.0,0.00017671,2]
[350368777,1737815458177,-584.8,0.00017671,2]
[350368778,1737815458186,-500.0,0.00017671,2]
[350368779,1737815458195,-500.0,0.00017671,2]
[350368780,1737815458204,-500.0,0.00017671,2]
[350368781,1737815458214,-500.0,0.00017671,2]
[350368782,1737815458223,-500.0,0.00017671,2]
[350368783,1737815458232,-1784.29,0.00017671,2]
[350368784,1737815458241,-967.74,0.00017671,2]
[350368785,1737815458250,-500.0,0.00017671,2]
[350368786,1737815458260,-500.0,0.00017671,2]
[350368787,1737815458269,-500.0,0.00017671,2]
[350368788,1737815458278,-970.51,0.00017671,2]
[350368789,1737815458288,-922.95,0.00017671,2]
[350368790,1737815458297,-822.39,0.00017671,2]
[350368791,1737815458307,-500.0,0.00017671,2]
[350368792,1737815458316,-513.91,0.00017671,2]
[350368793,1737815458326,-500.0,0.00017671,2]
[350368794,1737815458336,-1282.13,0.00017671,2]
[350368795,1737815458345,-2359.15,0.00017671,2]
[350368796,1737815458355,-1575.49,0.00017671,2]
[350368797,1737815458365,-500.0,0.00017671,2]
[350368798,1737815458375,-500.0,0.00017671,2]
[350368799,1737815458384,-164.88,0.00017671,2]
[350368800,1737815458394,-500.0,0.00017671,2]
[350368801,1737815458403,-500.0,0.00017671,2]
[350368802,1737815458414,-500.0,0.00017671,2]
[350368803,1737815458423,-614.06,0.00017671,2]
[350368804,1737815458433,-500.0,0.00017671,2]
[350368805,1737815458442,-500.0,0.00017671,2]
[350368806,1737815458451,-558.27,0.00017671,2]
[350368807,1737815458461,-500.0,0.00017671,2]
[350368808,1737815458470,-640.62,0.00017671,2]
[350368809,1737815458479,-1865.29,0.00017671,2]
[350368810,1737815458488,-500.0,0.00017671,2]
[350368811,1737815458498,-754.97,0.00017671,2]
[350368812,1737815458507,-500.0,0.00017671,2]
[350368813,1737815458516,-500.0,0.00017671,2]
[350368814,1737815458526,-607.25,0.00017671,2]
[350368815,1737815458536,-500.0,0.00017671,2]
[350368816,1737815458546,-500.0,0.00017671,2]
[350368817,1737815458556,-1238.12,0.00017671,2]
[350368818,1737815458566,-1671.13,0.00017671,2]
[350368819,1737815458576,-500.0,0.00017671,2]
[350368820,1737815458585,-747.01,0.00017671,2]
[350368821,1737815458595,-2482.07,0.00017671,2]
[350368822,1737815458604,-1414.32,0.00017671,2]
[350368823,1737815458614,-537.11,0.00017671,2]
[350368824,1737815458623,-500.0,0.00017671,2]
[350368825,1737815458633,-500.0,0.00017671,2]
[350368826,1737815458643,-500.0,0.00017671,2]
[350368827,1737815458652,-667.36,0.00017671,2]
[350368828,1737815458661,-1211.55,0.00017671,2]
[350368829,1737815458671,-500.0,0.00017671,2]
[350368830,1737815458680,-510.36,0.00017671,2]
[350368831,1737815458690,-487.29685962,0.00017671,2]
[350368832,1737815458703,-525.78,0.00017671,2]
[350368833,1737815458712,-500.0,0.00017671,2]
[350368834,1737815458721,-573.87,0.00017671,2]
[350368835,1737815458731,-1073.09,0.00017671,2]
[350368836,1737815458741,-1787.93,0.00017671,2]
[350368837,1737815458751,-500.0,0.00017671,2]
[350368838,1737815458760,-619.29,0.00017671,2]
[350368839,1737815458771,-500.0,0.00017671,2]
[350368840,1737815458781,-500.0,0.00017671,2]
[350368841,1737815458792,-634.75,0.00017671,2]
[350368842,1737815458802,-500.0,0.00017671,2]
[350368843,1737815458812,-500.0,0.00017671,2]
[350368844,1737815458821,-622.31,0.00017671,2]
[350368845,1737815458830,-500.0,0.00017671,2]
[350368846,1737815458839,-1731.58,0.00017671,2]
[350368847,1737815458849,-1257.87,0.00017671,2]
[350368848,1737815458858,-574.68,0.00017671,2]
[350368849,1737815458869,-500.0,0.00017671,2]
[350368850,1737815458878,-898.6,0.00017671,2]
[350368851,1737815458888,-543.74,0.00017671,2]
[350368852,1737815458897,-500.0,0.00017671,2]
[350368853,1737815458909,-879.75,0.00017671,2]
[350368854,1737815458919,-500.0,0.00017671,2]
[350368855,1737815458928,-500.0,0.00017671,2]
[350368856,1737815458937,-500.0,0.00017671,2]
[350368857,1737815458947,-843.9,0.00017671,2]
[350368858,1737815458956,-500.0,0.00017671,2]
[350368859,1737815458966,-1000.0,0.00017671,2]
[350368860,1737815458975,-500.0,0.00017671,2]
[350368861,1737815458984,-2189.12,0.00017671,2]
[350368862,1737815458994,-705.19,0.00017671,2]
[350368863,1737815459003,-542.2,0.00017671,2]
[350368864,1737815459013,-500.0,0.00017671,2]
[350368865,1737815459022,-500.0,0.00017671,2]
[350368866,1737815459032,-751.55,0.00017671,2]
[350368867,1737815459043,-500.0,0.00017671,2]
[350368868,1737815459052,-2135.79,0.00017671,2]
[350368869,1737815459062,-500.0,0.00017807,2]
[350368870,1737815459073,-500.0,0.00017807,2]
[350368871,1737815459083,-500.0,0.00017808,2]
[350368872,1737815459092,-500.0,0.00017808,2]
[350368873,1737815459102,-500.0,0.00017808,2]
[350368874,1737815459111,-500.0,0.00017808,2]
[350368875,1737815459121,-763.46,0.00017808,2]
[350368876,1737815459130,-500.0,0.00017808,2]
[350368877,1737815459139,-584.8,0.00017808,2]
[350368878,1737815459149,-500.0,0.00017808,2]
[350368879,1737815459158,-500.0,0.00017808,2]
[350368880,1737815459168,-500.0,0.00017808,2]
[350368881,1737815459178,-500.0,0.00017808,2]
[350368882,1737815459188,-500.0,0.00017808,2]
[350368883,1737815459197,-1784.29,0.00017808,2]
[350368884,1737815459206,-967.74,0.00017808,2]
[350368885,1737815459216,-500.0,0.00017808,2]
[350368886,1737815459226,-500.0,0.00017808,2]
[350368887,1737815459235,-394.86,0.00017808,2]
[350368888,1737815459245,-970.51,0.00017808,2]
[350368889,1737815459254,-922.95,0.00017808,2]
[350368890,1737815459264,-822.39,0.00017808,2]
[350368891,1737815459274,-500.0,0.00017808,2]
[350368892,1737815459285,-513.91,0.00017808,2]
[350368893,1737815459294,-500.0,0.00017808,2]
[350368894,1737815459304,-1282.13,0.00017808,2]
[350368895,1737815459313,-2359.15,0.00017808,2]
[350368896,1737815459323,-1575.49,0.00017808,2]
[350368897,1737815459332,-500.0,0.00017808,2]
[350368898,1737815459342,-500.0,0.00017808,2]
[350368899,1737815459351,-416.62,0.00017808,2]
[350368900,1737815459367,-500.0,0.00017808,2]
[350368901,1737815459377,-500.0,0.00017808,2]
[350368902,1737815459386,-614.06,0.00017808,2]
[350368903,1737815459396,-500.0,0.00017808,2]
[350368904,1737815459405,-500.0,0.00017808,2]
[350368905,1737815459415,-558.27,0.00017808,2]
[350368906,1737815459424,-500.0,0.00017808,2]
[350368907,1737815459434,-640.62,0.00017808,2]
[350368908,1737815459443,-1865.29,0.00017808,2]
[350368909,1737815459453,-500.0,0.00017808,2]
[350368910,1737815459462,-754.97,0.00017808,2]
[350368911,1737815459471,-500.0,0.00017808,2]
[350368912,1737815459481,-500.0,0.00017808,2]
[350368913,1737815459491,-607.25,0.00017808,2]
[350368914,1737815459501,-500.0,0.00017808,2]
[350368915,1737815459511,-500.0,0.00017808,2]
[350368916,1737815459520,-1238.12,0.00017808,2]
[350368917,1737815459530,-1671.13,0.00017808,2]
[350368918,1737815459541,-747.01,0.00017808,2]
[350368919,1737815459551,-2482.07,0.00017808,2]
[350368920,1737815459560,-1414.32,0.00017808,2]
[350368921,1737815459570,-537.11,0.00017808,2]
[350368922,1737815459580,-500.0,0.00017808,2]
[350368923,1737815459590,-500.0,0.00017808,2]
[350368924,1737815459599,-500.0,0.00017808,2]
[350368925,1737815459609,-667.36,0.00017808,2]
[350368926,1737815459619,-1211.55,0.00017808,2]
[350368927,1737815459628,-500.0,0.00017808,2]
[350368928,1737815459637,-510.36,0.00017808,2]
[350368929,1737815459647,-525.78,0.00017808,2]
[350368930,1737815459657,-500.0,0.00017808,2]
[350368931,1737815459666,-573.87,0.00017808,2]
[350368932,1737815459675,-1073.09,0.00017808,2]
[350368933,1737815459685,-1787.93,0.00017808,2]
[350368934,1737815459698,-500.0,0.00017808,2]
[350368935,1737815459708,-619.29,0.00017808,2]
[350368936,1737815459717,-500.0,0.00017808,2]
[350368937,1737815459727,-634.75,0.00017808,2]
[350368938,1737815459737,-500.0,0.00017808,2]
[350368939,1737815459747,-500.0,0.00017808,2]
[350368940,1737815459756,-622.31,0.00017808,2]
[350368941,1737815459766,-500.0,0.00017808,2]
[350368942,1737815459778,-1731.58,0.00017808,2]
[350368943,1737815459788,-1257.87,0.00017808,2]
[350368944,1737815459798,-574.68,0.00017808,2]
[350368945,1737815459807,-500.0,0.00017808,2]
[350368946,1737815459817,-898.6,0.00017808,2]
[350368947,1737815459827,-543.74,0.00017808,2]
[350368948,1737815459837,-500.0,0.00017808,2]
[350368949,1737815459847,-879.75,0.00017808,2]
[350368950,1737815459857,-500.0,0.00017808,2]
[350368951,1737815459867,-500.0,0.00017808,2]
[350368952,1737815459876,-500.0,0.00017808,2]
[350368953,1737815459886,-843.9,0.00017808,2]
[350368954,1737815459896,-500.0,0.00017808,2]
[350368955,1737815459906,-1000.0,0.00017808,2]
[350368956,1737815459916,-517.75671372,0.00017808,2]
[350368957,1737815459926,-2189.12,0.00017808,2]
[350368958,1737815459935,-705.19,0.00017808,2]
[350368959,1737815459944,-542.2,0.00017808,2]
[350368960,1737815459954,-500.0,0.00017808,2]
[350368961,1737815459963,-500.0,0.00017808,2]
[350368962,1737815459972,-751.55,0.00017808,2]
[350368963,1737815459982,-500.0,0.00017808,2]
[350368964,1737815459991,-2135.79,0.00017808,2]
[350368965,1737815460000,-614.05082751,0.00017866,2]
[350368966,1737815460010,-500.0,0.00017944,2]
[350368967,1737815460019,-225.39,0.00017944,2]
[350368968,1737815460029,-500.0,0.00017945,2]
[350368969,1737815460039,-500.0,0.00017945,2]
[350368970,1737815460050,-500.0,0.00017945,2]
[350368971,1737815460060,-500.0,0.00017945,2]
[350368972,1737815460070,-763.46,0.00017945,2]
[350368973,1737815460080,-500.0,0.00017945,2]
[350368974,1737815460090,-584.8,0.00017945,2]
[350368975,1737815460100,-500.0,0.00017945,2]
[350368976,1737815460110,-500.0,0.00017945,2]
[350368977,1737815460120,-500.0,0.00017945,2]
[350368978,1737815460129,-500.0,0.00017945,2]
[350368979,1737815460139,-500.0,0.00017945,2]
[350368980,1737815460149,-1784.29,0.00017945,2]
[350368981,1737815460158,-967.74,0.00017945,2]
[350368982,1737815460167,-500.0,0.00017945,2]
[350368983,1737815460177,-500.0,0.00017945,2]
[350368984,1737815460187,-970.51,0.00017945,2]
[350368985,1737815460196,-922.95,0.00017945,2]
[350368986,1737815460206,-822.39,0.00017945,2]
[350368987,1737815460216,-500.0,0.00017945,2]
[350368988,1737815460226,-513.91,0.00017945,2]
[350368989,1737815460235,-500.0,0.00017945,2]
[350368990,1737815460246,-1282.13,0.00017945,2]
[350368991,1737815460255,-2359.15,0.00017945,2]
[350368992,1737815460265,-1575.49,0.00017945,2]
[350368993,1737815460274,-500.0,0.00017945,2]
[350368994,1737815460284,-500.0,0.00017945,2]
[350368995,1737815460294,-500.0,0.00017945,2]
[350368996,1737815460303,-500.0,0.00017945,2]
[350368997,1737815460312,-614.06,0.00017945,2]
[350368998,1737815460322,-500.0,0.00017945,2]
[350368999,1737815460332,-500.0,0.00017945,2]
[350369000,1737815460341,-558.27,0.00017945,2]
[350369001,1737815460351,-500.0,0.00017945,2]
[350369002,1737815460360,-640.62,0.00017945,2]
[350369003,1737815460370,-1865.29,0.00017945,2]
[350369004,1737815460379,-500.0,0.00017945,2]
[350369005,1737815460389,-754.97,0.00017945,2]
[350369006,1737815460398,-500.0,0.00017945,2]
[350369007,1737815460408,-500.0,0.00017945,2]
[350369008,1737815460418,-607.25,0.00017945,2]
[350369009,1737815460428,-500.0,0.00017945,2]
[350369010,1737815460438,-500.0,0.00017945,2]
[350369011,1737815460448,-1238.12,0.00017945,2]
[350369012,1737815460459,-1671.13,0.00017945,2]
[350369013,1737815460470,-747.01,0.00017945,2]
[350369014,1737815460480,-2482.07,0.00017945,2]
[350369015,1737815460489,-1414.32,0.00017945,2]
[350369016,1737815460499,-537.11,0.00017945,2]
[350369017,1737815460683,-268.9076311,0.00017945,2]
[350369018,1737815460696,-500.0,0.00017945,2]
[350369019,1737815460708,-500.0,0.00017945,2]
[350369020,1737815460717,-667.36,0.00017945,2]
[350369021,1737815460727,-1211.55,0.00017945,2]
[350369022,1737815460736,-500.0,0.00017945,2]
[350369023,1737815460746,-510.36,0.00017945,2]
[350369024,1737815460756,-525.78,0.00017945,2]
[350369025,1737815460766,-500.0,0.00017945,2]
[350369026,1737815460775,-573.87,0.00017945,2]
[350369027,1737815460785,-1073.09,0.00017945,2]
[350369028,1737815460795,-1787.93,0.00017945,2]
[350369029,1737815460804,-500.0,0.00017945,2]
[350369030,1737815460814,-619.29,0.00017945,2]
[350369031,1737815460824,-500.0,0.00017945,2]
[350369032,1737815460833,-634.75,0.00017945,2]
[350369033,1737815460843,-500.0,0.00017945,2]
[350369034,1737815460852,-500.0,0.00017945,2]
[350369035,1737815460862,-622.31,0.00017945,2]
[350369036,1737815460873,-517.65080487,0.00017945,2]
[350369037,1737815460882,-1731.58,0.00017945,2]
[350369038,1737815460892,-1257.87,0.00017945,2]
[350369039,1737815460902,-574.68,0.00017945,2]
[350369040,1737815460912,-500.0,0.00017945,2]
[350369041,1737815460922,-898.6,0.00017945,2]
[350369042,1737815460932,-543.74,0.00017945,2]
[350369043,1737815460942,-500.0,0.00017945,2]
[350369044,1737815460951,-879.75,0.00017945,2]
[350369045,1737815460962,-500.0,0.00017945,2]
[350369046,1737815460971,-500.0,0.00017945,2]
[350369047,1737815460981,-500.0,0.00017945,2]
[350369048,1737815460991,-843.9,0.00017945,2]
[350369049,1737815461000,-500.0,0.00017945,2]
[350369050,1737815461009,-1000.0,0.00017945,2]
[350369051,1737815461019,-2189.12,0.00017945,2]
[350369052,1737815461028,-705.19,0.00017945,2]
[350369053,1737815461039,-542.2,0.00017945,2]
[350369054,1737815461048,-500.0,0.00017945,2]
[350369055,1737815461058,-500.0,0.00017945,2]
[350369056,1737815461067,-751.55,0.00017945,2]
[350369057,1737815461076,-500.0,0.00017945,2]
[350369058,1737815461086,-2135.79,0.00017945,2]
[350369059,1737815461095,-10996.64302874,0.00018,3]
[350369060,1737815461105,-1321.05501897,0.00018,2]
[350369061,1737815461115,-1536.3481232,0.00018,10]
[350369062,1737815461124,-388.001393,0.00018,5]
[350369063,1737815461133,-1135.36479407,0.00018,2]
[350369064,1737815461143,-1033.45045277,0.00018,2]
[350369065,1737815461152,-5615.36403996,0.00018,2]
[350369066,1737815461164,-1849.204,0.00018019,2]
[350369067,1737815461173,-500.0,0.00018081,2]
[350369068,1737815461184,-500.0,0.00018082,2]
[350369069,1737815461195,-268.89,0.00018082,2]
[350369070,1737815461205,-463.08,0.00018082,2]
[350369071,1737815461214,-500.0,0.00018082,2]
[350369072,1737815461225,-763.46,0.00018082,2]
[350369073,1737815461235,-500.0,0.00018082,2]
[350369074,1737815461244,-584.8,0.00018082,2]
[350369075,1737815461254,-500.0,0.00018082,2]
[350369076,1737815461264,-500.0,0.00018082,2]
[350369077,1737815461274,-500.0,0.00018082,2]
[350369078,1737815461285,-500.0,0.00018082,2]
[350369079,1737815461295,-500.0,0.00018082,2]
[350369080,1737815461305,-1784.29,0.00018082,2]
[350369081,1737815461315,-967.74,0.00018082,2]
[350369082,1737815461324,-500.0,0.00018082,2]
[350369083,1737815461334,-500.0,0.00018082,2]
[350369084,1737815461345,-970.51,0.00018082,2]
[350369085,1737815461354,-922.95,0.00018082,2]
[350369086,1737815461364,-822.39,0.00018082,2]
[350369087,1737815461375,-500.0,0.00018082,2]
[350369088,1737815461386,-513.91,0.00018082,2]
[350369089,1737815461395,-500.0,0.00018082,2]
[350369090,1737815461405,-1282.13,0.00018082,2]
[350369091,1737815461415,-2359.15,0.00018082,2]
[350369092,1737815461425,-1575.49,0.00018082,2]
[350369093,1737815461434,-500.0,0.00018082,2]
[350369094,1737815461444,-500.0,0.00018082,2]
[350369095,1737815461454,-500.0,0.00018082,2]
[350369096,1737815461464,-500.0,0.00018082,2]
[350369097,1737815461474,-614.06,0.00018082,2]
[350369098,1737815461485,-500.0,0.00018082,2]
[350369099,1737815461495,-500.0,0.00018082,2]
[350369100,1737815461506,-558.27,0.00018082,2]
[350369101,1737815461516,-500.0,0.00018082,2]
[350369102,1737815461527,-1865.29,0.00018082,2]
[350369103,1737815461536,-640.62,0.00018082,2]
[350369104,1737815461546,-500.0,0.00018082,2]
[350369105,1737815461556,-754.97,0.00018082,2]
[350369106,1737815461565,-500.0,0.00018082,2]
[350369107,1737815461575,-500.0,0.00018082,2]
[350369108,1737815461584,-607.25,0.00018082,2]
[350369109,1737815461594,-500.0,0.00018082,2]
[350369110,1737815461604,-500.0,0.00018082,2]
[350369111,1737815461614,-1238.12,0.00018082,2]
[350369112,1737815461623,-1671.13,0.00018082,2]
[350369113,1737815461633,-747.01,0.00018082,2]
[350369114,1737815461643,-2482.07,0.00018082,2]
[350369115,1737815461652,-1414.32,0.00018082,2]
[350369116,1737815461662,-537.11,0.00018082,2]
[350369117,1737815461672,-500.0,0.00018082,2]
[350369118,1737815461682,-500.0,0.00018082,2]
[350369119,1737815461692,-667.36,0.00018082,2]
[350369120,1737815461704,-1211.55,0.00018082,2]
[350369121,1737815461714,-500.0,0.00018082,2]
[350369122,1737815461723,-510.36,0.00018082,2]
[350369123,1737815461733,-525.78,0.00018082,2]
[350369124,1737815461745,-500.0,0.00018082,2]
[350369125,1737815461754,-573.87,0.00018082,2]
[350369126,1737815461763,-1073.09,0.00018082,2]
[350369127,1737815461773,-1787.93,0.00018082,2]
[350369128,1737815461783,-500.0,0.00018082,2]
[350369129,1737815461794,-619.29,0.00018082,2]
[350369130,1737815461803,-500.0,0.00018082,2]
[350369131,1737815461813,-634.75,0.00018082,2]
[350369132,1737815461822,-500.0,0.00018082,2]
[350369133,1737815461832,-500.0,0.00018082,2]
[350369134,1737815461841,-622.31,0.00018082,2]
[350369135,1737815461851,-1731.58,0.00018082,2]
[350369136,1737815461861,-1257.87,0.00018082,2]
[350369137,1737815461871,-574.68,0.00018082,2]
[350369138,1737815461880,-500.0,0.00018082,2]
[350369139,1737815461889,-898.6,0.00018082,2]
[350369140,1737815461899,-543.74,0.00018082,2]
[350369141,1737815461909,-500.0,0.00018082,2]
[350369142,1737815461919,-879.75,0.00018082,2]
[350369143,1737815461927,-500.0,0.00018082,2]
[350369144,1737815461938,-500.0,0.00018082,2]
[350369145,1737815461947,-500.0,0.00018082,2]
[350369146,1737815461958,-843.9,0.00018082,2]
[350369147,1737815461969,-500.0,0.00018082,2]
[350369148,1737815461978,-1000.0,0.00018082,2]
[350369149,1737815461988,-2189.12,0.00018082,2]
[350369150,1737815461998,-705.19,0.00018082,2]
[350369151,1737815462008,-542.2,0.00018082,2]
[350369152,1737815462017,-500.0,0.00018082,2]
[350369153,1737815462027,-500.0,0.00018082,2]
[350369154,1737815462036,-751.55,0.00018082,2]
[350369155,1737815462046,-500.0,0.00018082,2]
[350369156,1737815462055,-2135.79,0.00018082,2]
[350369157,1737815462064,-245.72,0.00018082,2]
[350369158,1737815462074,-200.0,0.00018082,2]
[350369159,1737815462083,-391.80149259,0.000181,2]
[350369160,1737815462093,-777.57421614,0.000181,2]
[350369161,1737815462102,-4803.81719093,0.00018151,2]
[350369162,1737815462112,-500.0,0.00018164,2]
[350369163,1737815462122,-500.0,0.00018164,2]
[350369164,1737815462131,-614.05082751,0.00018176,2]
[350369165,1737815462141,-82902.51968737,0.00018189,2]
[350369166,1737815462151,-4499.12,0.000182,2]
[350369167,1737815462160,-500.0,0.00018218,2]
[350369168,1737815462170,-500.0,0.00018219,2]
[350369169,1737815462180,-500.0,0.00018219,2]
[350369170,1737815462190,-763.46,0.00018219,2]
[350369171,1737815462200,-500.0,0.00018219,2]
[350369172,1737815462211,-584.8,0.00018219,2]
[350369173,1737815462221,-293.05,0.00018219,2]
[350369174,1737815462230,-500.0,0.00018219,2]
[350369175,1737815462240,-500.0,0.00018219,2]
[350369176,1737815462250,-500.0,0.00018219,2]
[350369177,1737815462259,-500.0,0.00018219,2]
[350369178,1737815462269,-1784.29,0.00018219,2]
[350369179,1737815462279,-967.74,0.00018219,2]
[350369180,1737815462289,-500.0,0.00018219,2]
[350369181,1737815462299,-500.0,0.00018219,2]
[350369182,1737815462308,-970.51,0.00018219,2]
[350369183,1737815462318,-922.95,0.00018219,2]
[350369184,1737815462327,-822.39,0.00018219,2]
[350369185,1737815462336,-500.0,0.00018219,2]
[350369186,1737815462346,-513.91,0.00018219,2]
[350369187,1737815462355,-387.96,0.00018219,2]
[350369188,1737815462365,-1282.13,0.00018219,2]
[350369189,1737815462374,-2359.15,0.00018219,2]
[350369190,1737815462384,-1575.49,0.00018219,2]
[350369191,1737815462394,-500.0,0.00018219,2]
[350369192,1737815462403,-500.0,0.00018219,2]
[350369193,1737815462412,-500.0,0.00018219,2]
[350369194,1737815462421,-500.0,0.00018219,2]
[350369195,1737815462430,-614.06,0.00018219,2]
[350369196,1737815462439,-500.0,0.00018219,2]
[350369197,1737815462449,-500.0,0.00018219,2]
[350369198,1737815462458,-558.27,0.00018219,2]
[350369199,1737815462467,-500.0,0.00018219,2]
[350369200,1737815462477,-1865.29,0.00018219,2]
[350369201,1737815462486,-640.62,0.00018219,2]
[350369202,1737815462496,-500.0,0.00018219,2]
[350369203,1737815462505,-754.97,0.00018219,2]